Workbook

Sheet RoomTemps
A1: Date | B1: T1 | C1: T2 | D1: Avg T
A2: 2011-12-13T15:00:00 | B2: 295.36 | C2: 295.2177778 | D2: =AVERAGE(B2,C2) -> 295.2888889
A3: 2011-12-13T16:00:00 | B3: 295.205 | C3: 295.053 | D3: =AVERAGE(B3,C3) -> 295.129
A4: 2011-12-13T17:00:00 | B4: 295.0414141 | C4: 294.86 | D4: 294.9507071
A5: 2011-12-13T18:00:00 | B5: 295.0141414 | C5: 294.864 | D5: 294.9390707
A6: 2011-12-13T19:00:00 | B6: 294.816 | C6: 294.653 | D6: 294.7345
A7: 2011-12-13T20:00:00 | B7: 294.808 | C7: 294.6323232 | D7: 294.7201616
A8: 2011-12-13T21:00:00 | B8: 294.711 | C8: 294.5545455 | D8: 294.6327727
A9: 2011-12-13T22:00:00 | B9: 294.737 | C9: 294.565 | D9: 294.651
A10: 2011-12-13T23:00:00 | B10: 294.73 | C10: 294.57 | D10: 294.65
A11: 2011-12-14 | B11: 294.691 | C11: 294.5373737 | D11: 294.6141869
A12: 2011-12-14T01:00:00 | B12: 294.6363636 | C12: 294.4979798 | D12: 294.5671717
A13: 2011-12-14T02:00:00 | B13: 294.607 | C13: 294.475 | D13: 294.541
A14: 2011-12-14T03:00:00 | B14: 294.5686869 | C14: 294.411 | D14: 294.4898434
A15: 2011-12-14T04:00:00 | B15: 294.538 | C15: 294.3777778 | D15: 294.4578889
A16: 2011-12-14T05:00:00 | B16: 294.5212121 | C16: 294.3606061 | D16: 294.4409091
A17: 2011-12-14T06:00:00 | B17: 294.5 | C17: 294.316 | D17: 294.408
A18: 2011-12-14T07:00:00 | B18: 294.46 | C18: 294.269 | D18: 294.3645
A19: 2011-12-14T08:00:00 | B19: 294.358 | C19: 294.177 | D19: 294.2675
A20: 2011-12-14T09:00:00 | B20: 294.442 | C20: 294.277 | D20: 294.3595
A21: 2011-12-14T10:00:00 | B21: 294.514 | C21: 294.362 | D21: 294.438
A22: 2011-12-14T11:00:00 | B22: 294.5141414 | C22: 294.344 | D22: 294.4290707
A23: 2011-12-14T12:00:00 | B23: 294.544898 | C23: 294.421 | D23: 294.482949
A24: 2011-12-14T13:00:00 | B24: 294.611 | C24: 294.4838384 | D24: 294.5474192
A25: 2011-12-14T14:00:00 | B25: 294.616 | C25: 294.493 | D25: 294.5545
A26: 2011-12-14T15:00:00 | B26: 294.691 | C26: 294.568 | D26: 294.6295
A27: 2011-12-14T16:00:00 | B27: 294.758 | C27: 294.6030303 | D27: 294.6805152
A28: 2011-12-14T17:00:00 | B28: 294.723 | C28: 294.58 | D28: 294.6515
A29: 2011-12-14T18:00:00 | B29: 294.7090909 | C29: 294.5727273 | D29: 294.6409091
A30: 2011-12-14T19:00:00 | B30: 294.6858586 | C30: 294.5353535 | D30: 294.6106061
A31: 2011-12-14T20:00:00 | B31: 294.674 | C31: 294.526 | D31: 294.6
A32: 2011-12-14T21:00:00 | B32: 294.631 | C32: 294.491 | D32: 294.561
A33: 2011-12-14T22:00:00 | B33: 294.57 | C33: 294.4265306 | D33: 294.4982653
A34: 2011-12-14T23:00:00 | B34: 294.5366337 | C34: 294.3782178 | D34: 294.4574257
A35: 2011-12-15 | B35: 294.504 | C35: 294.32 | D35: 294.412
A36: 2011-12-15T01:00:00 | B36: 294.402 | C36: 294.24 | D36: 294.321
A37: 2011-12-15T02:00:00 | B37: 294.3313131 | C37: 294.16 | D37: 294.2456566
A38: 2011-12-15T03:00:00 | B38: 294.248 | C38: 294.073 | D38: 294.1605
A39: 2011-12-15T04:00:00 | B39: 294.196 | C39: 294.024 | D39: 294.11
A40: 2011-12-15T05:00:00 | B40: 294.139 | C40: 293.9757576 | D40: 294.0573788
A41: 2011-12-15T06:00:00 | B41: 294.204 | C41: 294.05 | D41: 294.127
A42: 2011-12-15T07:00:00 | B42: 294.1424242 | C42: 293.98 | D42: 294.0612121
A43: 2011-12-15T08:00:00 | B43: 293.998 | C43: 293.829 | D43: 293.9135
A44: 2011-12-15T09:00:00 | B44: 294.011 | C44: 293.845 | D44: 293.928
A45: 2011-12-15T10:00:00 | B45: 294.0060606 | C45: 293.858 | D45: 293.9320303
A46: 2011-12-15T11:00:00 | B46: 293.9979798 | C46: 293.851 | D46: 293.9244899
A47: 2011-12-15T12:00:00 | B47: 294.115 | C47: 293.976 | D47: 294.0455
A48: 2011-12-15T13:00:00 | B48: 294.272 | C48: 294.144 | D48: 294.208
A49: 2011-12-15T14:00:00 | B49: 294.415 | C49: 294.281 | D49: 294.348
A50: 2011-12-15T15:00:00 | B50: 294.554 | C50: 294.442 | D50: 294.498
A51: 2011-12-15T16:00:00 | B51: 294.595 | C51: 294.4777778 | D51: 294.5363889
A52: 2011-12-15T17:00:00 | B52: 294.5989899 | C52: 294.463 | D52: 294.5309949
A53: 2011-12-15T18:00:00 | B53: 294.55 | C53: 294.408 | D53: 294.479
A54: 2011-12-15T19:00:00 | B54: 294.52 | C54: 294.377 | D54: 294.4485
A55: 2011-12-15T20:00:00 | B55: 294.46 | C55: 294.293 | D55: 294.3765
A56: 2011-12-15T21:00:00 | B56: 294.511 | C56: 294.354 | D56: 294.4325
A57: 2011-12-15T22:00:00 | B57: 294.48 | C57: 294.314 | D57: 294.397
A58: 2011-12-15T23:00:00 | B58: 294.4930693 | C58: 294.3168317 | D58: 294.4049505
A59: 2011-12-16 | B59: 294.463 | C59: 294.292 | D59: 294.3775
A60: 2011-12-16T01:00:00 | B60: 294.432 | C60: 294.279 | D60: 294.3555
A61: 2011-12-16T02:00:00 | B61: 294.4070707 | C61: 294.2494949 | D61: 294.3282828
A62: 2011-12-16T03:00:00 | B62: 294.374 | C62: 294.214 | D62: 294.294
A63: 2011-12-16T04:00:00 | B63: 294.344 | C63: 294.19 | D63: 294.267
A64: 2011-12-16T05:00:00 | B64: 294.314 | C64: 294.156 | D64: 294.235
A65: 2011-12-16T06:00:00 | B65: 294.268 | C65: 294.092 | D65: 294.18
A66: 2011-12-16T07:00:00 | B66: 294.19 | C66: 294.028 | D66: 294.109
A67: 2011-12-16T08:00:00 | B67: 294.257 | C67: 294.094 | D67: =AVERAGE(B67,C67) -> 294.1755
A68: 2011-12-16T09:00:00 | B68: 294.313 | C68: 294.15 | D68: 294.2315
A69: 2011-12-16T10:00:00 | B69: 294.419 | C69: 294.2777778 | D69: 294.3483889
A70: 2011-12-16T11:00:00 | B70: 294.5353535 | C70: 294.404 | D70: 294.4696768
A71: 2011-12-16T12:00:00 | B71: 294.537 | C71: 294.3989899 | D71: 294.4679949
A72: 2011-12-16T13:00:00 | B72: 294.595 | C72: 294.483 | D72: 294.539
A73: 2011-12-16T14:00:00 | B73: 294.723 | C73: 294.59 | D73: 294.6565
A74: 2011-12-16T15:00:00 | B74: 294.805 | C74: 294.6787879 | D74: 294.7418939
A75: 2011-12-16T16:00:00 | B75: 294.809 | C75: 294.67 | D75: 294.7395
A76: 2011-12-16T17:00:00 | B76: 294.822 | C76: 294.694 | D76: 294.758
A77: 2011-12-16T18:00:00 | B77: 294.826 | C77: 294.6858586 | D77: 294.7559293
A78: 2011-12-16T19:00:00 | B78: 294.834 | C78: 294.6887755 | D78: 294.7613878
A79: 2011-12-16T20:00:00 | B79: 294.824 | C79: 294.6909091 | D79: 294.7574545
A80: 2011-12-16T21:00:00 | B80: 294.8454545 | C80: 294.715 | D80: 294.7802273
A81: 2011-12-16T22:00:00 | B81: 294.876 | C81: 294.7464646 | D81: 294.8112323
A82: 2011-12-16T23:00:00 | B82: 294.890625 | C82: 294.764 | D82: 294.8273125
A83: 2011-12-17 | B83: 294.9193878 | C83: 294.7888889 | D83: 294.8541383
A84: 2011-12-17T01:00:00 | B84: 294.911 | C84: 294.774 | D84: 294.8425
A85: 2011-12-17T02:00:00 | B85: 294.9216495 | C85: 294.7795918 | D85: 294.8506207
A86: 2011-12-17T03:00:00 | B86: 294.9122449 | C86: 294.779798 | D86: 294.8460214
A87: 2011-12-17T04:00:00 | B87: 294.912 | C87: 294.777 | D87: 294.8445
A88: 2011-12-17T05:00:00 | B88: 294.9195876 | C88: 294.7929293 | D88: 294.8562585
A89: 2011-12-17T06:00:00 | B89: 294.902 | C89: 294.763 | D89: 294.8325
A90: 2011-12-17T07:00:00 | B90: 294.892 | C90: 294.775 | D90: 294.8335
A91: 2011-12-17T08:00:00 | B91: 294.881 | C91: 294.746 | D91: 294.8135
A92: 2011-12-17T09:00:00 | B92: 294.901 | C92: 294.749 | D92: 294.825
A93: 2011-12-17T10:00:00 | B93: 294.8979381 | C93: 294.773 | D93: 294.8354691
A94: 2011-12-17T11:00:00 | B94: 294.8838384 | C94: 294.752 | D94: 294.8179192
A95: 2011-12-17T12:00:00 | B95: 294.949 | C95: 294.7969697 | D95: 294.8729848
A96: 2011-12-17T13:00:00 | B96: 294.9818182 | C96: 294.835 | D96: 294.9084091
A97: 2011-12-17T14:00:00 | B97: 295.007 | C97: 294.882 | D97: 294.9445
A98: 2011-12-17T15:00:00 | B98: 295.0050505 | C98: 294.871 | D98: 294.9380253
A99: 2011-12-17T16:00:00 | B99: 295.0060606 | C99: 294.868 | D99: 294.9370303
A100: 2011-12-17T17:00:00 | B100: 295.05 | C100: 294.932 | D100: 294.991
A101: 2011-12-17T18:00:00 | B101: 295.134 | C101: 295.006 | D101: 295.07
A102: 2011-12-17T19:00:00 | B102: 295.167 | C102: 295.014 | D102: 295.0905
A103: 2011-12-17T20:00:00 | B103: 295.204 | C103: 295.067 | D103: 295.1355
A104: 2011-12-17T21:00:00 | B104: 295.211 | C104: 295.071 | D104: 295.141
A105: 2011-12-17T22:00:00 | B105: 295.228 | C105: 295.11 | D105: 295.169
A106: 2011-12-17T23:00:00 | B106: 295.251 | C106: 295.137 | D106: 295.194
A107: 2011-12-18 | B107: 295.278 | C107: 295.149 | D107: 295.2135
A108: 2011-12-18T01:00:00 | B108: 295.273 | C108: 295.14 | D108: 295.2065
A109: 2011-12-18T02:00:00 | B109: 295.2777778 | C109: 295.1565657 | D109: 295.2171717
A110: 2011-12-18T03:00:00 | B110: 295.294 | C110: 295.173 | D110: 295.2335
A111: 2011-12-18T04:00:00 | B111: 295.295 | C111: 295.171 | D111: 295.233
A112: 2011-12-18T05:00:00 | B112: 295.293 | C112: 295.159 | D112: 295.226
A113: 2011-12-18T06:00:00 | B113: 295.279 | C113: 295.146 | D113: 295.2125
A114: 2011-12-18T07:00:00 | B114: 295.197 | C114: 295.031 | D114: 295.114
A115: 2011-12-18T08:00:00 | B115: 295.165 | C115: 295.012 | D115: 295.0885
A116: 2011-12-18T09:00:00 | B116: 295.159596 | C116: 295.008 | D116: 295.083798
A117: 2011-12-18T10:00:00 | B117: 295.164 | C117: 295 | D117: 295.082
A118: 2011-12-18T11:00:00 | B118: 295.171 | C118: 295.015 | D118: 295.093
A119: 2011-12-18T12:00:00 | B119: 295.201 | C119: 295.05 | D119: 295.1255
A120: 2011-12-18T13:00:00 | B120: 295.207 | C120: 295.073 | D120: 295.14
A121: 2011-12-18T14:00:00 | B121: 295.216 | C121: 295.09 | D121: 295.153
A122: 2011-12-18T15:00:00 | B122: 295.208 | C122: 295.059 | D122: 295.1335
A123: 2011-12-18T16:00:00 | B123: 295.194 | C123: 295.037 | D123: 295.1155
A124: 2011-12-18T17:00:00 | B124: 295.128 | C124: 294.988 | D124: 295.058
A125: 2011-12-18T18:00:00 | B125: 295.059596 | C125: 294.915 | D125: 294.987298
A126: 2011-12-18T19:00:00 | B126: 295.016 | C126: 294.879 | D126: 294.9475
A127: 2011-12-18T20:00:00 | B127: 294.98 | C127: 294.804 | D127: 294.892
A128: 2011-12-18T21:00:00 | B128: 294.9285714 | C128: 294.789 | D128: 294.8587857
A129: 2011-12-18T22:00:00 | B129: 294.9060606 | C129: 294.755 | D129: 294.8305303
A130: 2011-12-18T23:00:00 | B130: 294.839 | C130: 294.6939394 | D130: 294.7664697
A131: 2011-12-19 | B131: 294.804 | C131: 294.643 | D131: =AVERAGE(B131,C131) -> 294.7235
A132: 2011-12-19T01:00:00 | B132: 294.774 | C132: 294.6030303 | D132: 294.6885152
A133: 2011-12-19T02:00:00 | B133: 294.7171717 | C133: 294.5565657 | D133: 294.6368687
A134: 2011-12-19T03:00:00 | B134: 294.665 | C134: 294.525 | D134: 294.595
A135: 2011-12-19T04:00:00 | B135: 294.6373737 | C135: 294.49 | D135: 294.5636869
A136: 2011-12-19T05:00:00 | B136: 294.589 | C136: 294.4505051 | D136: 294.5197525
A137: 2011-12-19T06:00:00 | B137: 294.5454545 | C137: 294.3969697 | D137: 294.4712121
A138: 2011-12-19T07:00:00 | B138: 294.5141026 | C138: 294.3397436 | D138: 294.4269231
A139: 2011-12-19T08:00:00 | B139: n/a | C139: n/a
A140: 2011-12-19T09:00:00 | B140: n/a | C140: n/a
A141: 2011-12-19T10:00:00 | B141: n/a | C141: n/a
A142: 2011-12-19T11:00:00 | B142: n/a | C142: n/a
A143: 2011-12-19T12:00:00 | B143: n/a | C143: n/a
A144: 2011-12-19T13:00:00 | B144: n/a | C144: n/a
A145: 2011-12-19T14:00:00 | B145: n/a | C145: n/a
A146: 2011-12-19T15:00:00 | B146: n/a | C146: n/a
A147: 2011-12-19T16:00:00 | B147: n/a | C147: n/a
A148: 2011-12-19T17:00:00 | B148: n/a | C148: n/a
A149: 2011-12-19T18:00:00 | B149: n/a | C149: n/a
A150: 2011-12-19T19:00:00 | B150: n/a | C150: n/a
A151: 2011-12-19T20:00:00 | B151: n/a | C151: n/a
A152: 2011-12-19T21:00:00 | B152: n/a | C152: n/a
A153: 2011-12-19T22:00:00 | B153: n/a | C153: n/a
A154: 2011-12-19T23:00:00 | B154: n/a | C154: n/a
A155: 2011-12-20 | B155: n/a | C155: n/a
A156: 2011-12-20T01:00:00 | B156: n/a | C156: n/a
A157: 2011-12-20T02:00:00 | B157: n/a | C157: n/a
A158: 2011-12-20T03:00:00 | B158: n/a | C158: n/a
A159: 2011-12-20T04:00:00 | B159: n/a | C159: n/a
A160: 2011-12-20T05:00:00 | B160: n/a | C160: n/a
A161: 2011-12-20T06:00:00 | B161: n/a | C161: n/a
A162: 2011-12-20T07:00:00 | B162: n/a | C162: n/a
A163: 2011-12-20T08:00:00 | B163: n/a | C163: n/a
A164: 2011-12-20T09:00:00 | B164: n/a | C164: n/a
A165: 2011-12-20T10:00:00 | B165: n/a | C165: n/a
A166: 2011-12-20T11:00:00 | B166: n/a | C166: n/a
A167: 2011-12-20T12:00:00 | B167: n/a | C167: n/a
A168: 2011-12-20T13:00:00 | B168: n/a | C168: n/a
A169: 2011-12-20T14:00:00 | B169: 295 | C169: 294.8714286 | D169: 294.9357143
A170: 2011-12-20T15:00:00 | B170: 294.968 | C170: 294.824 | D170: 294.896
A171: 2011-12-20T16:00:00 | B171: 294.9785714 | C171: 294.844 | D171: 294.9112857
A172: 2011-12-20T17:00:00 | B172: 294.9848485 | C172: 294.828 | D172: 294.9064242
A173: 2011-12-20T18:00:00 | B173: 294.989899 | C173: 294.8323232 | D173: 294.9111111
A174: 2011-12-20T19:00:00 | B174: 295 | C174: 294.861 | D174: 294.9305
A175: 2011-12-20T20:00:00 | B175: 294.9757576 | C175: 294.8181818 | D175: 294.8969697
A176: 2011-12-20T21:00:00 | B176: 294.9494949 | C176: 294.8090909 | D176: 294.8792929
A177: 2011-12-20T22:00:00 | B177: 294.945 | C177: 294.794898 | D177: 294.869949
A178: 2011-12-20T23:00:00 | B178: 294.922 | C178: 294.779 | D178: 294.8505
A179: 2011-12-21 | B179: 294.872449 | C179: 294.7393939 | D179: 294.8059215
A180: 2011-12-21T01:00:00 | B180: 294.821 | C180: 294.666 | D180: 294.7435
A181: 2011-12-21T02:00:00 | B181: 294.7494949 | C181: 294.6 | D181: 294.6747475
A182: 2011-12-21T03:00:00 | B182: 294.705 | C182: 294.543 | D182: 294.624
A183: 2011-12-21T04:00:00 | B183: 294.629 | C183: 294.493 | D183: 294.561
A184: 2011-12-21T05:00:00 | B184: 294.5808081 | C184: 294.412 | D184: 294.496404
A185: 2011-12-21T06:00:00 | B185: 294.515 | C185: 294.341 | D185: 294.428
A186: 2011-12-21T07:00:00 | B186: 294.471 | C186: 294.2919192 | D186: 294.3814596
A187: 2011-12-21T08:00:00 | B187: 294.506 | C187: 294.356 | D187: 294.431
A188: 2011-12-21T09:00:00 | B188: 294.536 | C188: 294.391 | D188: 294.4635
A189: 2011-12-21T10:00:00 | B189: 294.613 | C189: 294.485 | D189: 294.549
A190: 2011-12-21T11:00:00 | B190: 294.652 | C190: 294.5292929 | D190: 294.5906465
A191: 2011-12-21T12:00:00 | B191: 294.7121212 | C191: 294.584 | D191: 294.6480606
A192: 2011-12-21T13:00:00 | B192: 294.793 | C192: 294.6618557 | D192: 294.7274278
A193: 2011-12-21T14:00:00 | B193: 294.924 | C193: 294.8 | D193: 294.862
A194: 2011-12-21T15:00:00 | B194: 294.9989899 | C194: 294.859 | D194: 294.9289949
A195: 2011-12-21T16:00:00 | B195: 295.0010101 | C195: 294.851 | D195: =AVERAGE(B195,C195) -> 294.9260051
A196: 2011-12-21T17:00:00 | B196: 294.9959184 | C196: 294.8414141 | D196: 294.9186663
A197: 2011-12-21T18:00:00 | B197: 294.964 | C197: 294.8 | D197: 294.882
A198: 2011-12-21T19:00:00 | B198: 294.935 | C198: 294.7858586 | D198: 294.8604293
A199: 2011-12-21T20:00:00 | B199: 294.951 | C199: 294.791 | D199: 294.871
A200: 2011-12-21T21:00:00 | B200: 294.946 | C200: 294.7909091 | D200: 294.8684545
... 300 more rows

Sheet Humid-DP
A1: Date | B1: Temp( C ) | C1: Humid | D1: DP( C ) | E1: Press (bar) | F1: T(K) | G1: DP(K) | H1: Temp Scale Pressure | I1: Temp Scale Humidity
A2: 2011-12-13 | B2: 11.56986111 | C2: 68.02916667 | D2: 5.88375 | E2: 906.2713889 | F2: =B2+273.15 -> 284.7198611 | G2: =D2+273.15 -> 279.03375 | H2: =(E2-914)*2+280 -> 264.5427778 | I2: =(C2-50)*0.4+275 -> 282.2116667
A3: 2011-12-13T01:00:00.003 | B3: 11.83625 | C3: 65.72916667 | D3: 5.615833333 | E3: 907.7940278 | F3: =B3+273.15 -> 284.98625 | G3: =D3+273.15 -> 278.7658333 | H3: =(E3-914)*2+280 -> 267.5880556 | I3: =(C3-50)*0.4+275 -> 281.2916667
A4: 2011-12-13T02:00:00.006 | B4: 11.76361111 | C4: 66.05555556 | D4: 5.624583333 | E4: 907.9586111 | F4: 284.9136111 | G4: 278.7745833 | H4: 267.9172222 | I4: 281.4222222
A5: 2011-12-13T03:00:00.009 | B5: 11.77625 | C5: 65.96666667 | D5: 5.610694444 | E5: 908.1623611 | F5: 284.92625 | G5: 278.7606944 | H5: 268.3247222 | I5: 281.3866667
A6: 2011-12-13T04:00:00.012 | B6: 9.245416667 | C6: 88.84583333 | D6: 7.485 | E6: 903.7059722 | F6: 282.3954167 | G6: 280.635 | H6: 259.4119444 | I6: 290.5383333
A7: 2011-12-13T05:00:00.014 | B7: 7.117891817 | C7: 99.00416089 | D7: 6.960610264 | E7: 905.4160888 | F7: 280.2678918 | G7: 280.1106103 | H7: 262.8321775 | I7: 294.6016644
A8: 2011-12-13T06:00:00.017 | B8: 6.621944444 | C8: 101 | D8: 6.7425 | E8: 905.3154167 | F8: 279.7719444 | G8: 279.8925 | H8: 262.6308333 | I8: 295.4
A9: 2011-12-13T07:00:00.020 | B9: 6.561111111 | C9: 101 | D9: 6.689444444 | E9: 905.1633333 | F9: 279.7111111 | G9: 279.8394444 | H9: 262.3266667 | I9: 295.4
A10: 2011-12-13T08:00:00.023 | B10: 6.515138889 | C10: 101 | D10: 6.699444444 | E10: 906.0981944 | F10: 279.6651389 | G10: 279.8494444 | H10: 264.1963889 | I10: 295.4
A11: 2011-12-13T09:00:00.026 | B11: 6.740694444 | C11: 100.9888889 | D11: 6.883055556 | E11: 910.6755556 | F11: 279.8906944 | G11: 280.0330556 | H11: 273.3511111 | I11: 295.3955556
A12: 2011-12-13T10:00:00.029 | B12: 7.376666667 | C12: 97.29444444 | D12: 6.947916667 | E12: 908.5648611 | F12: 280.5266667 | G12: 280.0979167 | H12: 269.1297222 | I12: 293.9177778
A13: 2011-12-13T11:00:00.032 | B13: 6.942222222 | C13: 99.3625 | D13: 6.825416667 | E13: 907.3634722 | F13: 280.0922222 | G13: 279.9754167 | H13: 266.7269444 | I13: 294.745
A14: 2011-12-13T12:00:00.035 | B14: 7.10875 | C14: 101 | D14: 7.259861111 | E14: 908.0404167 | F14: 280.25875 | G14: 280.4098611 | H14: 268.0808333 | I14: 295.4
A15: 2011-12-13T13:00:00.037 | B15: 6.79125 | C15: 101.0291667 | D15: 6.970277778 | E15: 906.7551389 | F15: 279.94125 | G15: 280.1202778 | H15: 265.5102778 | I15: 295.4116667
A16: 2011-12-13T14:00:00.040 | B16: 6.294166667 | C16: 101.1138889 | D16: 6.482638889 | E16: 906.0776389 | F16: 279.4441667 | G16: 279.6326389 | H16: 264.1552778 | I16: 295.4455556
A17: 2011-12-13T15:00:00.043 | B17: 7.136666667 | C17: 100.7833333 | D17: 7.248055556 | E17: 907.4106944 | F17: 280.2866667 | G17: 280.3980556 | H17: 266.8213889 | I17: 295.3133333
A18: 2011-12-13T16:00:00.046 | B18: 7.168472222 | C18: 96.54166667 | D18: 6.625416667 | E18: 905.7818056 | F18: 280.3184722 | G18: 279.7754167 | H18: 263.5636111 | I18: 293.6166667
A19: 2011-12-13T17:00:00.049 | B19: 7.065416667 | C19: 100.9861111 | D19: 7.183472222 | E19: 906.2609722 | F19: 280.2154167 | G19: 280.3334722 | H19: 264.5219444 | I19: 295.3944444
A20: 2011-12-13T18:00:00.052 | B20: 6.703333333 | C20: 101.0152778 | D20: 6.878194444 | E20: 905.7011111 | F20: 279.8533333 | G20: 280.0281944 | H20: 263.4022222 | I20: 295.4061111
A21: 2011-12-13T19:00:00.055 | B21: 6.416388889 | C21: 101.1138889 | D21: 6.619861111 | E21: 906.895 | F21: 279.5663889 | G21: 279.7698611 | H21: 265.79 | I21: 295.4455556
A22: 2011-12-13T20:00:00.058 | B22: 5.945138889 | C22: 101.0916667 | D22: 6.13 | E22: 908.3590278 | F22: 279.0951389 | G22: 279.28 | H22: 268.7180556 | I22: 295.4366667
A23: 2011-12-13T21:00:00.060 | B23: 5.642638889 | C23: 100.9833333 | D23: 5.748333333 | E23: 906.9055556 | F23: 278.7926389 | G23: 278.8983333 | H23: 265.8111111 | I23: 295.3933333
A24: 2011-12-13T22:00:00.063 | B24: 6.161527778 | C24: 93.07916667 | D24: 5.094861111 | E24: 909.9302778 | F24: 279.3115278 | G24: 278.2448611 | H24: 271.8605556 | I24: 292.2316667
A25: 2011-12-13T23:00:00.066 | B25: 6.179722222 | C25: 88.89305556 | D25: 4.463333333 | E25: 910.6111111 | F25: 279.3297222 | G25: 277.6133333 | H25: 273.2222222 | I25: 290.5572222
A26: 2011-12-14 | B26: 6.770833333 | C26: 82.67638889 | D26: 4.029166667 | E26: 912.0993056 | F26: 279.9208333 | G26: 277.1791667 | H26: 276.1986111 | I26: 288.0705556
A27: 2011-12-14T01:00:00 | B27: 6.365138889 | C27: 85.12916667 | D27: 4.05125 | E27: 911.4156944 | F27: 279.5151389 | G27: 277.20125 | H27: 274.8313889 | I27: 289.0516667
A28: 2011-12-14T02:00:00.001 | B28: 6.944305556 | C28: 82.27777778 | D28: 4.119166667 | E28: 913.0741667 | F28: 280.0943056 | G28: 277.2691667 | H28: 278.1483333 | I28: 287.9111111
A29: 2011-12-14T03:00:00.001 | B29: 7.102083333 | C29: 82.01944444 | D29: 4.234861111 | E29: 913.5126389 | F29: 280.2520833 | G29: 277.3848611 | H29: 279.0252778 | I29: 287.8077778
A30: 2011-12-14T04:00:00.001 | B30: 6.9925 | C30: 83.64583333 | D30: 4.40125 | E30: 913.3427778 | F30: 280.1425 | G30: 277.55125 | H30: 278.6855556 | I30: 288.4583333
A31: 2011-12-14T05:00:00.001 | B31: 7.099167822 | C31: 83.76699029 | D31: 4.524965326 | E31: 913.5135922 | F31: 280.2491678 | G31: 277.6749653 | H31: 279.0271845 | I31: 288.5067961
A32: 2011-12-14T06:00:00.002 | B32: 7.142222222 | C32: 83.425 | D32: 4.501388889 | E32: 913.5041667 | F32: 280.2922222 | G32: 277.6513889 | H32: 279.0083333 | I32: 288.37
A33: 2011-12-14T07:00:00.002 | B33: 7.285138889 | C33: 80.78333333 | D33: 4.201944444 | E33: 914.8436111 | F33: 280.4351389 | G33: 277.3519444 | H33: 281.6872222 | I33: 287.3133333
A34: 2011-12-14T08:00:00.002 | B34: 7.848055556 | C34: 78.26388889 | D34: 4.300138889 | E34: 914.8973611 | F34: 280.9980556 | G34: 277.4501389 | H34: 281.7947222 | I34: 286.3055556
A35: 2011-12-14T09:00:00.003 | B35: 8.838888889 | C35: 73.20694444 | D35: 4.304861111 | E35: 912.3073611 | F35: 281.9888889 | G35: 277.4548611 | H35: 276.6147222 | I35: 284.2827778
A36: 2011-12-14T10:00:00.003 | B36: 9.634166667 | C36: 69.40416667 | D36: 4.278472222 | E36: 911.7598611 | F36: 282.7841667 | G36: 277.4284722 | H36: 275.5197222 | I36: 282.7616667
A37: 2011-12-14T11:00:00.003 | B37: 9.505833333 | C37: 64.56666667 | D37: 3.135833333 | E37: 912.84375 | F37: 282.6558333 | G37: 276.2858333 | H37: 277.6875 | I37: 280.8266667
A38: 2011-12-14T12:00:00.003 | B38: 10.18736111 | C38: 55.76388889 | D38: 1.741666667 | E38: 912.0343056 | F38: 283.3373611 | G38: 274.8916667 | H38: 276.0686111 | I38: 277.3055556
A39: 2011-12-14T13:00:00.004 | B39: 10.36763889 | C39: 54.24444444 | D39: 1.537083333 | E39: 911.3290278 | F39: 283.5176389 | G39: 274.6870833 | H39: 274.6580556 | I39: 276.6977778
A40: 2011-12-14T14:00:00.004 | B40: 10.50152778 | C40: 52.88472222 | D40: 1.305138889 | E40: 911.6158333 | F40: 283.6515278 | G40: 274.4551389 | H40: 275.2316667 | I40: 276.1538889
A41: 2011-12-14T15:00:00.004 | B41: 11.00944444 | C41: 50.85555556 | D41: 1.217916667 | E41: 909.7822222 | F41: 284.1594444 | G41: 274.3679167 | H41: 271.5644444 | I41: 275.3422222
A42: 2011-12-14T16:00:00.005 | B42: 10.76055556 | C42: 54.17361111 | D42: 1.865555556 | E42: 910.0016667 | F42: 283.9105556 | G42: 275.0155556 | H42: 272.0033333 | I42: 276.6694444
A43: 2011-12-14T17:00:00.005 | B43: 9.963611111 | C43: 61.14583333 | D43: 2.847777778 | E43: 910.8481944 | F43: 283.1136111 | G43: 275.9977778 | H43: 273.6963889 | I43: 279.4583333
A44: 2011-12-14T18:00:00.005 | B44: 9.410694444 | C44: 68.14722222 | D44: 3.825972222 | E44: 910.2009722 | F44: 282.5606944 | G44: 276.9759722 | H44: 272.4019444 | I44: 282.2588889
A45: 2011-12-14T19:00:00.005 | B45: 8.414444444 | C45: 76.31527778 | D45: 4.482777778 | E45: 910.9227778 | F45: 281.5644444 | G45: 277.6327778 | H45: 273.8455556 | I45: 285.5261111
A46: 2011-12-14T20:00:00.006 | B46: 7.707083333 | C46: 80.01805556 | D46: 4.478194444 | E46: 911.0227778 | F46: 280.8570833 | G46: 277.6281944 | H46: 274.0455556 | I46: 287.0072222
A47: 2011-12-14T21:00:00.006 | B47: 7.13625 | C47: 83.0875 | D47: 4.4475 | E47: 911.3668056 | F47: 280.28625 | G47: 277.5975 | H47: 274.7336111 | I47: 288.235
A48: 2011-12-14T22:00:00.006 | B48: 6.51 | C48: 84.89861111 | D48: 4.171666667 | E48: 912.4227778 | F48: 279.66 | G48: 277.3216667 | H48: 276.8455556 | I48: 288.9594444
A49: 2011-12-14T23:00:00.007 | B49: 6.206527778 | C49: 88.59305556 | D49: 4.44875 | E49: 912.5354167 | F49: 279.3565278 | G49: 277.59875 | H49: 277.0708333 | I49: 290.4372222
A50: 2011-12-15 | B50: 6.043194444 | C50: 86.69444444 | D50: 3.978194444 | E50: 910.8865278 | F50: 279.1931944 | G50: 277.1281944 | H50: 273.7730556 | I50: 289.6777778
A51: 2011-12-15T01:00:00 | B51: 4.835 | C51: 93.33055556 | D51: 3.848611111 | E51: 912.3594444 | F51: 277.985 | G51: 276.9986111 | H51: 276.7188889 | I51: 292.3322222
A52: 2011-12-15T02:00:00.001 | B52: 4.241805556 | C52: 95.56944444 | D52: 3.588611111 | E52: 911.1384722 | F52: 277.3918056 | G52: 276.7386111 | H52: 274.2769444 | I52: 293.2277778
A53: 2011-12-15T03:00:00.001 | B53: 2.804027778 | C53: 99.55277778 | D53: 2.732777778 | E53: 911.82875 | F53: 275.9540278 | G53: 275.8827778 | H53: 275.6575 | I53: 294.8211111
A54: 2011-12-15T04:00:00.001 | B54: 2.550416667 | C54: 101.3083333 | D54: 2.740833333 | E54: 913.5202778 | F54: 275.7004167 | G54: 275.8908333 | H54: 279.0405556 | I54: 295.5233333
A55: 2011-12-15T05:00:00.001 | B55: 3.253120666 | C55: 101.6352288 | D55: 3.46407767 | E55: 915.2417476 | F55: 276.4031207 | G55: 276.6140777 | H55: 282.4834951 | I55: 295.6540915
A56: 2011-12-15T06:00:00.002 | B56: 2.764722222 | C56: 101.9291667 | D56: 3.002777778 | E56: 913.8722222 | F56: 275.9147222 | G56: 276.1527778 | H56: 279.7444444 | I56: 295.7716667
A57: 2011-12-15T07:00:00.002 | B57: 2.464166667 | C57: 102 | D57: 2.723333333 | E57: 913.4544444 | F57: 275.6141667 | G57: 275.8733333 | H57: 278.9088889 | I57: 295.8
A58: 2011-12-15T08:00:00.002 | B58: 2.405416667 | C58: 101.9930556 | D58: 2.648194444 | E58: 916.1983333 | F58: 275.5554167 | G58: 275.7981944 | H58: 284.3966667 | I58: 295.7972222
A59: 2011-12-15T09:00:00.003 | B59: 3.007638889 | C59: 101.9763889 | D59: 3.259861111 | E59: 917.0869444 | F59: 276.1576389 | G59: 276.4098611 | H59: 286.1738889 | I59: 295.7905556
A60: 2011-12-15T10:00:00.003 | B60: 4.42625 | C60: 97.46527778 | D60: 4.037222222 | E60: 914.7740278 | F60: 277.57625 | G60: 277.1872222 | H60: 281.5480556 | I60: 293.9861111
A61: 2011-12-15T11:00:00.003 | B61: 7.029166667 | C61: 74.60416667 | D61: 2.798333333 | E61: 912.2633333 | F61: 280.1791667 | G61: 275.9483333 | H61: 276.5266667 | I61: 284.8416667
A62: 2011-12-15T12:00:00.003 | B62: 10.18180556 | C62: 62.61944444 | D62: 3.348333333 | E62: 910.9858333 | F62: 283.3318056 | G62: 276.4983333 | H62: 273.9716667 | I62: 280.0477778
A63: 2011-12-15T13:00:00.004 | B63: 12.06875 | C63: 55.06944444 | D63: 3.324027778 | E63: 910.2597222 | F63: 285.21875 | G63: 276.4740278 | H63: 272.5194444 | I63: 277.0277778
A64: 2011-12-15T14:00:00.004 | B64: 13.18083333 | C64: 49.71944444 | D64: 2.908055556 | E64: 909.9747222 | F64: 286.3308333 | G64: 276.0580556 | H64: 271.9494444 | I64: 274.8877778
A65: 2011-12-15T15:00:00.004 | B65: 14.095 | C65: 46.48194444 | D65: 2.799166667 | E65: 908.7993056 | F65: 287.245 | G65: 275.9491667 | H65: 269.5986111 | I65: 273.5927778
A66: 2011-12-15T16:00:00.005 | B66: 13.90888889 | C66: 46.96944444 | D66: 2.774166667 | E66: 907.2501389 | F66: 287.0588889 | G66: 275.9241667 | H66: 266.5002778 | I66: 273.7877778
A67: 2011-12-15T17:00:00.005 | B67: 12.67819444 | C67: 52.57083333 | D67: 3.200416667 | E67: 907.1686111 | F67: =B67+273.15 -> 285.8281944 | G67: =D67+273.15 -> 276.3504167 | H67: =(E67-914)*2+280 -> 266.3372222 | I67: =(C67-50)*0.4+275 -> 276.0283333
A68: 2011-12-15T18:00:00.005 | B68: 10.47097222 | C68: 67.80555556 | D68: 4.765555556 | E68: 907.4513889 | F68: 283.6209722 | G68: 277.9155556 | H68: 266.9027778 | I68: 282.1222222
A69: 2011-12-15T19:00:00.005 | B69: 9.537777778 | C69: 71.66111111 | D69: 4.683611111 | E69: 908.3379167 | F69: 282.6877778 | G69: 277.8336111 | H69: 268.6758333 | I69: 283.6644444
A70: 2011-12-15T20:00:00.006 | B70: 8.896527778 | C70: 74.52083333 | D70: 4.627361111 | E70: 907.50375 | F70: 282.0465278 | G70: 277.7773611 | H70: 267.0075 | I70: 284.8083333
A71: 2011-12-15T21:00:00.006 | B71: 8.580138889 | C71: 76.61111111 | D71: 4.734722222 | E71: 909.02875 | F71: 281.7301389 | G71: 277.8847222 | H71: 270.0575 | I71: 285.6444444
A72: 2011-12-15T22:00:00.006 | B72: 7.609305556 | C72: 82.13194444 | D72: 4.762638889 | E72: 907.2515278 | F72: 280.7593056 | G72: 277.9126389 | H72: 266.5030556 | I72: 287.8527778
A73: 2011-12-15T23:00:00.007 | B73: 7.40375 | C73: 82.05555556 | D73: 4.541111111 | E73: 907.0720833 | F73: 280.55375 | G73: 277.6911111 | H73: 266.1441667 | I73: 287.8222222
A74: 2011-12-16 | B74: 9.294861111 | C74: 65.52638889 | D74: 3.079583333 | E74: 909.4718056 | F74: 282.4448611 | G74: 276.2295833 | H74: 270.9436111 | I74: 281.2105556
A75: 2011-12-16T01:00:00 | B75: 10.08444444 | C75: 57.99305556 | D75: 2.194166667 | E75: 908.0155556 | F75: 283.2344444 | G75: 275.3441667 | H75: 268.0311111 | I75: 278.1972222
A76: 2011-12-16T02:00:00.001 | B76: 9.150555556 | C76: 60.0125 | D76: 1.796388889 | E76: 906.8277778 | F76: 282.3005556 | G76: 274.9463889 | H76: 265.6555556 | I76: 279.005
A77: 2011-12-16T03:00:00.001 | B77: 9.3125 | C77: 56.64444444 | D77: 1.145972222 | E77: 908.2947222 | F77: 282.4625 | G77: 274.2959722 | H77: 268.5894444 | I77: 277.6577778
A78: 2011-12-16T04:00:00.001 | B78: 8.889861111 | C78: 56.55277778 | D78: 0.7376388889 | E78: 906.8279167 | F78: 282.0398611 | G78: 273.8876389 | H78: 265.6558333 | I78: 277.6211111
A79: 2011-12-16T05:00:00.001 | B79: 8.458252427 | C79: 57.01803051 | D79: 0.4446601942 | E79: 906.636061 | F79: 281.6082524 | G79: 273.5946602 | H79: 265.2721221 | I79: 277.8072122
A80: 2011-12-16T06:00:00.002 | B80: 7.804166667 | C80: 61.13333333 | D80: 0.7776388889 | E80: 907.4575 | F80: 280.9541667 | G80: 273.9276389 | H80: 266.915 | I80: 279.4533333
A81: 2011-12-16T07:00:00.002 | B81: 8.827777778 | C81: 55.53472222 | D81: 0.4226388889 | E81: 910.1020833 | F81: 281.9777778 | G81: 273.5726389 | H81: 272.2041667 | I81: 277.2138889
A82: 2011-12-16T08:00:00.002 | B82: 10.23361111 | C82: 50.33472222 | D82: 0.3513888889 | E82: 910.2373611 | F82: 283.3836111 | G82: 273.5013889 | H82: 272.4747222 | I82: 275.1338889
A83: 2011-12-16T09:00:00.003 | B83: 12.12291667 | C83: 43.32777778 | D83: 0.03097222222 | E83: 910.0797222 | F83: 285.2729167 | G83: 273.1809722 | H83: 272.1594444 | I83: 272.3311111
A84: 2011-12-16T10:00:00.003 | B84: 13.57958333 | C84: 39.51944444 | D84: 0.07652777778 | E84: 910.3633333 | F84: 286.7295833 | G84: 273.2265278 | H84: 272.7266667 | I84: 270.8077778
A85: 2011-12-16T11:00:00.003 | B85: 14.99097222 | C85: 35.32222222 | D85: -0.2205555556 | E85: 909.0715278 | F85: 288.1409722 | G85: 272.9294444 | H85: 270.1430556 | I85: 269.1288889
A86: 2011-12-16T12:00:00.003 | B86: 15.76597222 | C86: 33.20555556 | D86: -0.3441666667 | E86: 908.5809722 | F86: 288.9159722 | G86: 272.8058333 | H86: 269.1619444 | I86: 268.2822222
A87: 2011-12-16T13:00:00.004 | B87: 16.69736111 | C87: 31.88194444 | D87: -0.1356944444 | E87: 907.8119444 | F87: 289.8473611 | G87: 273.0143056 | H87: 267.6238889 | I87: 267.7527778
A88: 2011-12-16T14:00:00.004 | B88: 17.32833333 | C88: 31.40138889 | D88: 0.2131944444 | E88: 907.47875 | F88: 290.4783333 | G88: 273.3631944 | H88: 266.9575 | I88: 267.5605556
A89: 2011-12-16T15:00:00.004 | B89: 17.65930556 | C89: 29.56527778 | D89: -0.3125 | E89: 906.4190278 | F89: 290.8093056 | G89: 272.8375 | H89: 264.8380556 | I89: 266.8261111
A90: 2011-12-16T16:00:00.005 | B90: 16.60236111 | C90: 32.85 | D90: 0.2095833333 | E90: 905.7438889 | F90: 289.7523611 | G90: 273.3595833 | H90: 263.4877778 | I90: 268.14
A91: 2011-12-16T17:00:00.005 | B91: 16.02680556 | C91: 34.44305556 | D91: 0.3611111111 | E91: 907.2451389 | F91: 289.1768056 | G91: 273.5111111 | H91: 266.4902778 | I91: 268.7772222
A92: 2011-12-16T18:00:00.005 | B92: 15.28930556 | C92: 36.02777778 | D92: 0.3184722222 | E92: 906.6890278 | F92: 288.4393056 | G92: 273.4684722 | H92: 265.3780556 | I92: 269.4111111
A93: 2011-12-16T19:00:00.005 | B93: 14.58333333 | C93: 37.22361111 | D93: 0.15125 | E93: 907.1319444 | F93: 287.7333333 | G93: 273.30125 | H93: 266.2638889 | I93: 269.8894444
A94: 2011-12-16T20:00:00.006 | B94: 13.96875 | C94: 37.80138889 | D94: -0.1865277778 | E94: 907.8848611 | F94: 287.11875 | G94: 272.9634722 | H94: 267.7697222 | I94: 270.1205556
A95: 2011-12-16T21:00:00.006 | B95: 13.17958333 | C95: 41.35 | D95: 0.3236111111 | E95: 907.47875 | F95: 286.3295833 | G95: 273.4736111 | H95: 266.9575 | I95: 271.54
A96: 2011-12-16T22:00:00.006 | B96: 14.21027778 | C96: 36.01527778 | D96: -0.6363888889 | E96: 910.2534722 | F96: 287.3602778 | G96: 272.5136111 | H96: 272.5069444 | I96: 269.4061111
A97: 2011-12-16T23:00:00.007 | B97: 13.83541667 | C97: 37.3125 | D97: -0.4629166667 | E97: 909.3713889 | F97: 286.9854167 | G97: 272.6870833 | H97: 270.7427778 | I97: 269.925
A98: 2011-12-17 | B98: 14.37138889 | C98: 35.54166667 | D98: -0.6818055556 | E98: 910.9206944 | F98: 287.5213889 | G98: 272.4681944 | H98: 273.8413889 | I98: 269.2166667
A99: 2011-12-17T01:00:00 | B99: 13.89402778 | C99: 37.55555556 | D99: -0.3425 | E99: 909.5251389 | F99: 287.0440278 | G99: 272.8075 | H99: 271.0502778 | I99: 270.0222222
A100: 2011-12-17T02:00:00.001 | B100: 12.89416667 | C100: 42.31666667 | D100: 0.4055555556 | E100: 906.4416667 | F100: 286.0441667 | G100: 273.5555556 | H100: 264.8833333 | I100: 271.9266667
A101: 2011-12-17T03:00:00.001 | B101: 12.96097222 | C101: 43.75416667 | D101: 0.9420833333 | E101: 907.8333333 | F101: 286.1109722 | G101: 274.0920833 | H101: 267.6666667 | I101: 272.5016667
A102: 2011-12-17T04:00:00.001 | B102: 12.39416667 | C102: 46.84583333 | D102: 1.341527778 | E102: 909.0695833 | F102: 285.5441667 | G102: 274.4915278 | H102: 270.1391667 | I102: 273.7383333
A103: 2011-12-17T05:00:00.001 | B103: 11.94285714 | C103: 48.57004161 | D103: 1.43592233 | E103: 907.9152566 | F103: 285.0928571 | G103: 274.5859223 | H103: 267.8305132 | I103: 274.4280166
A104: 2011-12-17T06:00:00.002 | B104: 12.26930556 | C104: 47.43055556 | D104: 1.422083333 | E104: 908.3873611 | F104: 285.4193056 | G104: 274.5720833 | H104: 268.7747222 | I104: 273.9722222
A105: 2011-12-17T07:00:00.002 | B105: 12.85527778 | C105: 46.11388889 | D105: 1.579166667 | E105: 910.5797222 | F105: 286.0052778 | G105: 274.7291667 | H105: 273.1594444 | I105: 273.4455556
A106: 2011-12-17T08:00:00.002 | B106: 14.32555556 | C106: 42.42638889 | D106: 1.735555556 | E106: 912.3669444 | F106: 287.4755556 | G106: 274.8855556 | H106: 276.7338889 | I106: 271.9705556
A107: 2011-12-17T09:00:00.003 | B107: 16.01819444 | C107: 40.24444444 | D107: 2.515694444 | E107: 910.9702778 | F107: 289.1681944 | G107: 275.6656944 | H107: 273.9405556 | I107: 271.0977778
A108: 2011-12-17T10:00:00.003 | B108: 17.05986111 | C108: 37.74861111 | D108: 2.556388889 | E108: 909.38625 | F108: 290.2098611 | G108: 275.7063889 | H108: 270.7725 | I108: 270.0994444
A109: 2011-12-17T11:00:00.003 | B109: 17.86541667 | C109: 37.18055556 | D109: 3.023888889 | E109: 909.2261111 | F109: 291.0154167 | G109: 276.1738889 | H109: 270.4522222 | I109: 269.8722222
A110: 2011-12-17T12:00:00.003 | B110: 18.95375 | C110: 35.26944444 | D110: 3.251805556 | E110: 911.1858333 | F110: 292.10375 | G110: 276.4018056 | H110: 274.3716667 | I110: 269.1077778
A111: 2011-12-17T13:00:00.004 | B111: 19.18652778 | C111: 35.18472222 | D111: 3.440138889 | E111: 910.2901389 | F111: 292.3365278 | G111: 276.5901389 | H111: 272.5802778 | I111: 269.0738889
A112: 2011-12-17T14:00:00.004 | B112: 19.11263889 | C112: 35.63888889 | D112: 3.535277778 | E112: 910.27875 | F112: 292.2626389 | G112: 276.6852778 | H112: 272.5575 | I112: 269.2555556
A113: 2011-12-17T15:00:00.004 | B113: 17.15194444 | C113: 40.91805556 | D113: 3.755694444 | E113: 907.3975 | F113: 290.3019444 | G113: 276.9056944 | H113: 266.795 | I113: 271.3672222
A114: 2011-12-17T16:00:00.005 | B114: 15.88638889 | C114: 45.38055556 | D114: 4.064027778 | E114: 907.6748611 | F114: 289.0363889 | G114: 277.2140278 | H114: 267.3497222 | I114: 273.1522222
A115: 2011-12-17T17:00:00.005 | B115: 14.27388889 | C115: 54.02638889 | D115: 5.09 | E115: 908.3681944 | F115: 287.4238889 | G115: 278.24 | H115: 268.7363889 | I115: 276.6105556
A116: 2011-12-17T18:00:00.005 | B116: 13.48180556 | C116: 56.1125 | D116: 4.904166667 | E116: 908.4551389 | F116: 286.6318056 | G116: 278.0541667 | H116: 268.9102778 | I116: 277.445
A117: 2011-12-17T19:00:00.005 | B117: 12.84486111 | C117: 58.98472222 | D117: 5.029722222 | E117: 910.0318056 | F117: 285.9948611 | G117: 278.1797222 | H117: 272.0636111 | I117: 278.5938889
A118: 2011-12-17T20:00:00.006 | B118: 12.40444444 | C118: 60.25138889 | D118: 4.919444444 | E118: 909.2445833 | F118: 285.5544444 | G118: 278.0694444 | H118: 270.4891667 | I118: 279.1005556
A119: 2011-12-17T21:00:00.006 | B119: 12.13208333 | C119: 61.65972222 | D119: 4.981388889 | E119: 908.4616667 | F119: 285.2820833 | G119: 278.1313889 | H119: 268.9233333 | I119: 279.6638889
A120: 2011-12-17T22:00:00.006 | B120: 11.96833333 | C120: 63.08333333 | D120: 5.175416667 | E120: 908.3719444 | F120: 285.1183333 | G120: 278.3254167 | H120: 268.7438889 | I120: 280.2333333
A121: 2011-12-17T23:00:00.007 | B121: 11.68805556 | C121: 64.45833333 | D121: 5.193611111 | E121: 907.5679167 | F121: 284.8380556 | G121: 278.3436111 | H121: 267.1358333 | I121: 280.7833333
A122: 2011-12-18 | B122: 11.55638889 | C122: 64.45277778 | D122: 5.123888889 | E122: 908.1951389 | F122: 284.7063889 | G122: 278.2738889 | H122: 268.3902778 | I122: 280.7811111
A123: 2011-12-18T01:00:00 | B123: 11.37055556 | C123: 66.37916667 | D123: 5.350277778 | E123: 910.4608333 | F123: 284.5205556 | G123: 278.5002778 | H123: 272.9216667 | I123: 281.5516667
A124: 2011-12-18T02:00:00.001 | B124: 10.85527778 | C124: 70.625 | D124: 5.725 | E124: 908.7951389 | F124: 284.0052778 | G124: 278.875 | H124: 269.5902778 | I124: 283.25
A125: 2011-12-18T03:00:00.001 | B125: 10.37291667 | C125: 74.075 | D125: 5.938055556 | E125: 907.6843056 | F125: 283.5229167 | G125: 279.0880556 | H125: 267.3686111 | I125: 284.63
A126: 2011-12-18T04:00:00.001 | B126: 9.402916667 | C126: 79.24861111 | D126: 5.992361111 | E126: 908.4525 | F126: 282.5529167 | G126: 279.1423611 | H126: 268.905 | I126: 286.6994444
A127: 2011-12-18T05:00:00.001 | B127: 8.516920943 | C127: 84.83772538 | D127: 6.111373093 | E127: 908.0270458 | F127: 281.6669209 | G127: 279.2613731 | H127: 268.0540915 | I127: 288.9350902
A128: 2011-12-18T06:00:00.002 | B128: 8.187777778 | C128: 86.37638889 | D128: 6.05875 | E128: 908.6998611 | F128: 281.3377778 | G128: 279.20875 | H128: 269.3997222 | I128: 289.5505556
A129: 2011-12-18T07:00:00.002 | B129: 7.953888889 | C129: 87.05 | D129: 5.949305556 | E129: 911.3809722 | F129: 281.1038889 | G129: 279.0993056 | H129: 274.7619444 | I129: 289.82
A130: 2011-12-18T08:00:00.002 | B130: 8.487777778 | C130: 85.59444444 | D130: 6.217361111 | E130: 913.7525 | F130: 281.6377778 | G130: 279.3673611 | H130: 279.505 | I130: 289.2377778
A131: 2011-12-18T09:00:00.003 | B131: 9.481111111 | C131: 80.59166667 | D131: 6.312916667 | E131: 912.1602778 | F131: =B131+273.15 -> 282.6311111 | G131: =D131+273.15 -> 279.4629167 | H131: =(E131-914)*2+280 -> 276.3205556 | I131: =(C131-50)*0.4+275 -> 287.2366667
A132: 2011-12-18T10:00:00.003 | B132: 10.40291667 | C132: 74.76111111 | D132: 6.108888889 | E132: 910.1138889 | F132: 283.5529167 | G132: 279.2588889 | H132: 272.2277778 | I132: 284.9044444
A133: 2011-12-18T11:00:00.003 | B133: 10.65083333 | C133: 77.61527778 | D133: 6.876388889 | E133: 909.1954167 | F133: 283.8008333 | G133: 280.0263889 | H133: 270.3908333 | I133: 286.0461111
A134: 2011-12-18T12:00:00.003 | B134: 9.969166667 | C134: 86.1375 | D134: 7.761388889 | E134: 907.5469444 | F134: 283.1191667 | G134: 280.9113889 | H134: 267.0938889 | I134: 289.455
A135: 2011-12-18T13:00:00.004 | B135: 9.906111111 | C135: 87.97083333 | D135: 7.990972222 | E135: 908.9172222 | F135: 283.0561111 | G135: 281.1409722 | H135: 269.8344444 | I135: 290.1883333
A136: 2011-12-18T14:00:00.004 | B136: 9.661111111 | C136: 84.12222222 | D136: 7.114027778 | E136: 907.0856944 | F136: 282.8111111 | G136: 280.2640278 | H136: 266.1713889 | I136: 288.6488889
A137: 2011-12-18T15:00:00.004 | B137: 9.311666667 | C137: 80.91944444 | D137: 6.191111111 | E137: 908.1541667 | F137: 282.4616667 | G137: 279.3411111 | H137: 268.3083333 | I137: 287.3677778
A138: 2011-12-18T16:00:00.005 | B138: 9.28875 | C138: 79.28472222 | D138: 5.856805556 | E138: 909.9720833 | F138: 282.43875 | G138: 279.0068056 | H138: 271.9441667 | I138: 286.7138889
A139: 2011-12-18T17:00:00.005 | B139: 6.877222222 | C139: 96.025 | D139: 6.281527778 | E139: 908.57625 | F139: 280.0272222 | G139: 279.4315278 | H139: 269.1525 | I139: 293.41
A140: 2011-12-18T18:00:00.005 | B140: 6.306111111 | C140: 100.975 | D140: 6.404861111 | E140: 911.0118056 | F140: 279.4561111 | G140: 279.5548611 | H140: 274.0236111 | I140: 295.39
A141: 2011-12-18T19:00:00.005 | B141: 6.58 | C141: 100.8388889 | D141: 6.675277778 | E141: 911.9083333 | F141: 279.73 | G141: 279.8252778 | H141: 275.8166667 | I141: 295.3355556
A142: 2011-12-18T20:00:00.006 | B142: 6.559444444 | C142: 94.39722222 | D142: 5.739027778 | E142: 911.1720833 | F142: 279.7094444 | G142: 278.8890278 | H142: 274.3441667 | I142: 292.7588889
A143: 2011-12-18T21:00:00.006 | B143: 7.047777778 | C143: 91.89166667 | D143: 5.8075 | E143: 911.0744444 | F143: 280.1977778 | G143: 278.9575 | H143: 274.1488889 | I143: 291.7566667
A144: 2011-12-18T22:00:00.006 | B144: 6.983611111 | C144: 94.21666667 | D144: 6.111388889 | E144: 911.4586111 | F144: 280.1336111 | G144: 279.2613889 | H144: 274.9172222 | I144: 292.6866667
A145: 2011-12-18T23:00:00.007 | B145: 5.975138889 | C145: 97.3125 | D145: 5.580972222 | E145: 908.4831944 | F145: 279.1251389 | G145: 278.7309722 | H145: 268.9663889 | I145: 293.925
A146: 2011-12-19 | B146: 6.004861111 | C146: 100.9958333 | D146: 6.104166667 | E146: 908.3444444 | F146: 279.1548611 | G146: 279.2541667 | H146: 268.6888889 | I146: 295.3983333
A147: 2011-12-19T01:00:00 | B147: 6.424027778 | C147: 100.9958333 | D147: 6.529444444 | E147: 909.1463889 | F147: 279.5740278 | G147: 279.6794444 | H147: 270.2927778 | I147: 295.3983333
A148: 2011-12-19T02:00:00.001 | B148: 6.440833333 | C148: 95.11388889 | D148: 5.717083333 | E148: 908.8168056 | F148: 279.5908333 | G148: 278.8670833 | H148: 269.6336111 | I148: 293.0455556
A149: 2011-12-19T03:00:00.001 | B149: 6.355277778 | C149: 90.77361111 | D149: 4.946111111 | E149: 908.9883333 | F149: 279.5052778 | G149: 278.0961111 | H149: 269.9766667 | I149: 291.3094444
A150: 2011-12-19T04:00:00.001 | B150: 6.271111111 | C150: 92.56805556 | D150: 5.141111111 | E150: 908.4209722 | F150: 279.4211111 | G150: 278.2911111 | H150: 268.8419444 | I150: 292.0272222
A151: 2011-12-19T05:00:00.001 | B151: 6.234674064 | C151: 90.15256588 | D151: 4.723439667 | E151: 907.5402219 | F151: 279.3846741 | G151: 277.8734397 | H151: 267.0804438 | I151: 291.0610264
A152: 2011-12-19T06:00:00.002 | B152: 6.414722222 | C152: 86.04305556 | D152: 4.254166667 | E152: 908.5097222 | F152: 279.5647222 | G152: 277.4041667 | H152: 269.0194444 | I152: 289.4172222
A153: 2011-12-19T07:00:00.002 | B153: 6.582361111 | C153: 88.46944444 | D153: 4.812222222 | E153: 909.54125 | F153: 279.7323611 | G153: 277.9622222 | H153: 271.0825 | I153: 290.3877778
A154: 2011-12-19T08:00:00.002 | B154: 6.625 | C154: 88.7625 | D154: 4.89375 | E154: 909.8888889 | F154: 279.775 | G154: 278.04375 | H154: 271.7777778 | I154: 290.505
A155: 2011-12-19T09:00:00.003 | B155: 6.670694444 | C155: 89.08333333 | D155: 4.994305556 | E155: 911.2277778 | F155: 279.8206944 | G155: 278.1443056 | H155: 274.4555556 | I155: 290.6333333
A156: 2011-12-19T10:00:00.003 | B156: 7.851111111 | C156: 81.70972222 | D156: 4.918055556 | E156: 910.6355556 | F156: 281.0011111 | G156: 278.0680556 | H156: 273.2711111 | I156: 287.6838889
A157: 2011-12-19T11:00:00.003 | B157: 8.425972222 | C157: 80.77083333 | D157: 5.316111111 | E157: 908.3994444 | F157: 281.5759722 | G157: 278.4661111 | H157: 268.7988889 | I157: 287.3083333
A158: 2011-12-19T12:00:00.003 | B158: 9.080972222 | C158: 79.70972222 | D158: 5.771805556 | E158: 910.5856944 | F158: 282.2309722 | G158: 278.9218056 | H158: 273.1713889 | I158: 286.8838889
A159: 2011-12-19T13:00:00.004 | B159: 9.235277778 | C159: 76.69166667 | D159: 5.354861111 | E159: 908.3918056 | F159: 282.3852778 | G159: 278.5048611 | H159: 268.7836111 | I159: 285.6766667
A160: 2011-12-19T14:00:00.004 | B160: 9.582638889 | C160: 73.2 | D160: 5.028472222 | E160: 908.8704167 | F160: 282.7326389 | G160: 278.1784722 | H160: 269.7408333 | I160: 284.28
A161: 2011-12-19T15:00:00.004 | B161: 10.07861111 | C161: 72.72916667 | D161: 5.409305556 | E161: 908.34875 | F161: 283.2286111 | G161: 278.5593056 | H161: 268.6975 | I161: 284.0916667
A162: 2011-12-19T16:00:00.005 | B162: 10.02222222 | C162: 71.48194444 | D162: 5.109027778 | E162: 907.7463889 | F162: 283.1722222 | G162: 278.2590278 | H162: 267.4927778 | I162: 283.5927778
A163: 2011-12-19T17:00:00.005 | B163: 9.905277778 | C163: 70.93472222 | D163: 4.846666667 | E163: 906.8840278 | F163: 283.0552778 | G163: 277.9966667 | H163: 265.7680556 | I163: 283.3738889
A164: 2011-12-19T18:00:00.005 | B164: 9.875972222 | C164: 70.50555556 | D164: 4.747361111 | E164: 909.9454167 | F164: 283.0259722 | G164: 277.8973611 | H164: 271.8908333 | I164: 283.2022222
A165: 2011-12-19T19:00:00.005 | B165: 9.820555556 | C165: 70.36111111 | D165: 4.683888889 | E165: 909.5298611 | F165: 282.9705556 | G165: 277.8338889 | H165: 271.0597222 | I165: 283.1444444
A166: 2011-12-19T20:00:00.006 | B166: 9.633611111 | C166: 72.93611111 | D166: 5.047083333 | E166: 909.2391667 | F166: 282.7836111 | G166: 278.1970833 | H166: 270.4783333 | I166: 284.1744444
A167: 2011-12-19T21:00:00.006 | B167: 9.48375 | C167: 73.6875 | D167: 5.013611111 | E167: 908.2897222 | F167: 282.63375 | G167: 278.1636111 | H167: 268.5794444 | I167: 284.475
A168: 2011-12-19T22:00:00.006 | B168: 8.999722222 | C168: 81.51388889 | D168: 6.002222222 | E168: 909.0229167 | F168: 282.1497222 | G168: 279.1522222 | H168: 270.0458333 | I168: 287.6055556
A169: 2011-12-19T23:00:00.007 | B169: 8.3375 | C169: 86.33194444 | D169: 6.182777778 | E169: 908.8280556 | F169: 281.4875 | G169: 279.3327778 | H169: 269.6561111 | I169: 289.5327778
A170: 2011-12-20 | B170: 7.907083333 | C170: 87.92916667 | D170: 6.065833333 | E170: 908.26125 | F170: 281.0570833 | G170: 279.2158333 | H170: 268.5225 | I170: 290.1716667
A171: 2011-12-20T01:00:00 | B171: 7.92125 | C171: 86.57361111 | D171: 5.835555556 | E171: 907.2293056 | F171: 281.07125 | G171: 278.9855556 | H171: 266.4586111 | I171: 289.6294444
A172: 2011-12-20T02:00:00.001 | B172: 7.350833333 | C172: 89.64861111 | D172: 5.753055556 | E172: 907.085 | F172: 280.5008333 | G172: 278.9030556 | H172: 266.17 | I172: 290.8594444
A173: 2011-12-20T03:00:00.001 | B173: 7.341805556 | C173: 88.75555556 | D173: 5.594861111 | E173: 910.2179167 | F173: 280.4918056 | G173: 278.7448611 | H173: 272.4358333 | I173: 290.5022222
A174: 2011-12-20T04:00:00.001 | B174: 7.295138889 | C174: 90.5 | D174: 5.849166667 | E174: 910.4781944 | F174: 280.4451389 | G174: 278.9991667 | H174: 272.9563889 | I174: 291.2
A175: 2011-12-20T05:00:00.001 | B175: 7.30776699 | C175: 90.93758669 | D175: 5.914424411 | E175: 910.4163662 | F175: 280.457767 | G175: 279.0644244 | H175: 272.8327323 | I175: 291.3750347
A176: 2011-12-20T06:00:00.002 | B176: 7.243611111 | C176: 90.09861111 | D176: 5.720277778 | E176: 909.9415278 | F176: 280.3936111 | G176: 278.8702778 | H176: 271.8830556 | I176: 291.0394444
A177: 2011-12-20T07:00:00.002 | B177: 7.753194444 | C177: 85.56944444 | D177: 5.490138889 | E177: 910.9152778 | F177: 280.9031944 | G177: 278.6401389 | H177: 273.8305556 | I177: 289.2277778
A178: 2011-12-20T08:00:00.002 | B178: 8.163333333 | C178: 82.92083333 | D178: 5.439305556 | E178: 910.5088889 | F178: 281.3133333 | G178: 278.5893056 | H178: 273.0177778 | I178: 288.1683333
A179: 2011-12-20T09:00:00.003 | B179: 9.039027778 | C179: 77.83888889 | D179: 5.385972222 | E179: 909.2702778 | F179: 282.1890278 | G179: 278.5359722 | H179: 270.5405556 | I179: 286.1355556
A180: 2011-12-20T10:00:00.003 | B180: 10.22916667 | C180: 69.79444444 | D180: 4.944027778 | E180: 908.5044444 | F180: 283.3791667 | G180: 278.0940278 | H180: 269.0088889 | I180: 282.9177778
A181: 2011-12-20T11:00:00.003 | B181: 12.04152778 | C181: 50.60416667 | D181: 2.072916667 | E181: 908.2533333 | F181: 285.1915278 | G181: 275.2229167 | H181: 268.5066667 | I181: 275.2416667
A182: 2011-12-20T12:00:00.003 | B182: 12.96041667 | C182: 46.15555556 | D182: 1.669027778 | E182: 907.0829167 | F182: 286.1104167 | G182: 274.8190278 | H182: 266.1658333 | I182: 273.4622222
A183: 2011-12-20T13:00:00.004 | B183: 13.36361111 | C183: 44.70416667 | D183: 1.602222222 | E183: 905.4997222 | F183: 286.5136111 | G183: 274.7522222 | H183: 262.9994444 | I183: 272.8816667
A184: 2011-12-20T14:00:00.004 | B184: 14.02416667 | C184: 42.52638889 | D184: 1.502361111 | E184: 905.8326389 | F184: 287.1741667 | G184: 274.6523611 | H184: 263.6652778 | I184: 272.0105556
A185: 2011-12-20T15:00:00.004 | B185: 13.91111111 | C185: 45.25 | D185: 2.247916667 | E185: 904.5976389 | F185: 287.0611111 | G185: 275.3979167 | H185: 261.1952778 | I185: 273.1
A186: 2011-12-20T16:00:00.005 | B186: 12.81958333 | C186: 55.5625 | D186: 4.098888889 | E186: 904.2754167 | F186: 285.9695833 | G186: 277.2488889 | H186: 260.5508333 | I186: 277.225
A187: 2011-12-20T17:00:00.005 | B187: 11.62416667 | C187: 66.22222222 | D187: 5.530416667 | E187: 904.6722222 | F187: 284.7741667 | G187: 278.6804167 | H187: 261.3444444 | I187: 281.4888889
A188: 2011-12-20T18:00:00.005 | B188: 10.85625 | C188: 71.07222222 | D188: 5.825277778 | E188: 904.6134722 | F188: 284.00625 | G188: 278.9752778 | H188: 261.2269444 | I188: 283.4288889
A189: 2011-12-20T19:00:00.005 | B189: 10.28916667 | C189: 71.69722222 | D189: 5.395972222 | E189: 904.6611111 | F189: 283.4391667 | G189: 278.5459722 | H189: 261.3222222 | I189: 283.6788889
A190: 2011-12-20T20:00:00.006 | B190: 9.692083333 | C190: 75.01527778 | D190: 5.488888889 | E190: 905.9158333 | F190: 282.8420833 | G190: 278.6388889 | H190: 263.8316667 | I190: 285.0061111
A191: 2011-12-20T21:00:00.006 | B191: 9.571666667 | C191: 76.33888889 | D191: 5.616944444 | E191: 906.8334722 | F191: 282.7216667 | G191: 278.7669444 | H191: 265.6669444 | I191: 285.5355556
A192: 2011-12-20T22:00:00.006 | B192: 8.803888889 | C192: 81.21527778 | D192: 5.760694444 | E192: 906.2831944 | F192: 281.9538889 | G192: 278.9106944 | H192: 264.5663889 | I192: 287.4861111
A193: 2011-12-20T23:00:00.007 | B193: 8.252222222 | C193: 83.41388889 | D193: 5.614861111 | E193: 905.6340278 | F193: 281.4022222 | G193: 278.7648611 | H193: 263.2680556 | I193: 288.3655556
A194: 2011-12-21 | B194: 7.585416667 | C194: 85.42222222 | D194: 5.295416667 | E194: 906.3 | F194: 280.7354167 | G194: 278.4454167 | H194: 264.6 | I194: 289.1688889
A195: 2011-12-21T01:00:00 | B195: 7.126111111 | C195: 87.5 | D195: 5.155 | E195: 905.0863889 | F195: =B195+273.15 -> 280.2761111 | G195: =D195+273.15 -> 278.305 | H195: =(E195-914)*2+280 -> 262.1727778 | I195: =(C195-50)*0.4+275 -> 290
A196: 2011-12-21T02:00:00.001 | B196: 6.285833333 | C196: 89.76527778 | D196: 4.735 | E196: 907.1098611 | F196: 279.4358333 | G196: 277.885 | H196: 266.2197222 | I196: 290.9061111
A197: 2011-12-21T03:00:00.001 | B197: 5.691666667 | C197: 90.50833333 | D197: 4.250972222 | E197: 905.0694444 | F197: 278.8416667 | G197: 277.4009722 | H197: 262.1388889 | I197: 291.2033333
A198: 2011-12-21T04:00:00.001 | B198: 4.900972222 | C198: 91.88888889 | D198: 3.694861111 | E198: 907.0102778 | F198: 278.0509722 | G198: 276.8448611 | H198: 266.0205556 | I198: 291.7555556
A199: 2011-12-21T05:00:00.001 | B199: 4.479889043 | C199: 91.26352288 | D199: 3.151733703 | E199: 906.2421637 | F199: 277.629889 | G199: 276.3017337 | H199: 264.4843273 | I199: 291.5054092
A200: 2011-12-21T06:00:00.002 | B200: 4.161111111 | C200: 90.93472222 | D200: 2.810138889 | E200: 905.6566667 | F200: 277.3111111 | G200: 275.9601389 | H200: 263.3133333 | I200: 291.3738889
... 316 more rows

Sheet SpikeRate
A1: Date | B1: Rate/Hour | C1: Noise Rate | D1: Noise Date | E1: Value
A2: 2011-12-13T15:00:00 | B2: 95 | C2: 0 | D2: 12/13/2011 16:09:51 | E2: 265 | F2: =1 -> 1 | G2: =COUNT(F:F) -> 499
A3: 2011-12-13T16:00:00 | B3: 91 | C3: 2 | D3: 12/13/2011 16:59:14 | E3: 265 | F3: =1 -> 1
A4: 2011-12-13T17:00:00 | B4: 100 | C4: 0 | D4: 12/14/2011 02:30:22 | E4: 265 | F4: =1 -> 1
A5: 2011-12-13T18:00:00 | B5: 104 | C5: 0 | D5: 12/15/2011 08:37:52 | E5: 265 | F5: =1 -> 1
A6: 2011-12-13T19:00:00 | B6: 94 | C6: 0 | D6: 12/15/2011 09:58:29 | E6: 265 | F6: =1 -> 1
A7: 2011-12-13T20:00:00 | B7: 97 | C7: 0 | D7: 12/15/2011 09:58:34 | E7: 265 | F7: =1 -> 1
A8: 2011-12-13T21:00:00 | B8: 87 | C8: 0 | D8: 12/15/2011 10:00:03 | E8: 265 | F8: =1 -> 1
A9: 2011-12-13T22:00:00 | B9: 80 | C9: 0 | D9: 12/15/2011 10:10:20 | E9: 265 | F9: =1 -> 1
A10: 2011-12-13T23:00:00 | B10: 75 | C10: 0 | D10: 12/15/2011 10:51:45 | E10: 265 | F10: =1 -> 1
A11: 2011-12-14 | B11: 66 | C11: 0 | D11: 12/15/2011 10:52:00 | E11: 265 | F11: =1 -> 1
A12: 2011-12-14T01:00:00 | B12: 62 | C12: 0 | D12: 12/15/2011 12:15:04 | E12: 265 | F12: =1 -> 1
A13: 2011-12-14T02:00:00 | B13: 57 | C13: 1 | D13: 12/15/2011 16:35:44 | E13: 265 | F13: =1 -> 1
A14: 2011-12-14T03:00:00 | B14: 59 | C14: 0 | D14: 12/16/2011 11:54:07 | E14: 265 | F14: =1 -> 1
A15: 2011-12-14T04:00:00 | B15: 56 | C15: 0 | D15: 12/16/2011 13:22:35 | E15: 265 | F15: =1 -> 1
A16: 2011-12-14T05:00:00 | B16: 59 | C16: 0 | D16: 12/16/2011 18:11:23 | E16: 265 | F16: =1 -> 1
A17: 2011-12-14T06:00:00 | B17: 56 | C17: 0 | D17: 12/16/2011 21:54:24 | E17: 265 | F17: =1 -> 1
A18: 2011-12-14T07:00:00 | B18: 53 | C18: 0 | D18: 12/18/2011 23:59:06 | E18: 265 | F18: =1 -> 1
A19: 2011-12-14T08:00:00 | B19: 48 | C19: 0 | D19: 12/19/2011 14:04:03 | E19: 265 | F19: =1 -> 1
A20: 2011-12-14T09:00:00 | B20: 48 | C20: 0 | D20: 12/19/2011 20:45:04 | E20: 265 | F20: =1 -> 1
A21: 2011-12-14T10:00:00 | B21: 50 | C21: 0 | D21: 12/19/2011 21:30:54 | E21: 265 | F21: =1 -> 1
A22: 2011-12-14T11:00:00 | B22: 48 | C22: 0 | D22: 12/19/2011 21:43:32 | E22: 265 | F22: =1 -> 1
A23: 2011-12-14T12:00:00 | B23: 37 | C23: 0 | D23: 12/20/2011 06:53:42 | E23: 265 | F23: =1 -> 1
A24: 2011-12-14T13:00:00 | B24: 34 | C24: 0 | D24: 12/20/2011 12:24:05 | E24: 265 | F24: =1 -> 1
A25: 2011-12-14T14:00:00 | B25: 31 | C25: 0 | D25: 12/21/2011 09:27:16 | E25: 265 | F25: =1 -> 1
A26: 2011-12-14T15:00:00 | B26: 32 | C26: 0 | D26: 12/21/2011 10:30:16 | E26: 265 | F26: =1 -> 1
A27: 2011-12-14T16:00:00 | B27: 24 | C27: 0 | D27: 12/21/2011 11:26:00 | E27: 265 | F27: =1 -> 1
A28: 2011-12-14T17:00:00 | B28: 24 | C28: 0 | D28: 12/22/2011 14:57:17 | E28: 265 | F28: =1 -> 1
A29: 2011-12-14T18:00:00 | B29: 27 | C29: 0 | D29: 12/22/2011 15:28:40 | E29: 265 | F29: =1 -> 1
A30: 2011-12-14T19:00:00 | B30: 29 | C30: 0 | D30: 12/22/2011 21:01:00 | E30: 265 | F30: =1 -> 1
A31: 2011-12-14T20:00:00 | B31: 33 | C31: 0 | D31: 12/23/2011 07:22:57 | E31: 265 | F31: =1 -> 1
A32: 2011-12-14T21:00:00 | B32: 34 | C32: 0 | D32: 12/23/2011 11:23:23 | E32: 265 | F32: =1 -> 1
A33: 2011-12-14T22:00:00 | B33: 38 | C33: 0 | D33: 12/23/2011 12:58:51 | E33: 265 | F33: =1 -> 1
A34: 2011-12-14T23:00:00 | B34: 37 | C34: 0 | D34: 12/23/2011 16:41:06 | E34: 265 | F34: =1 -> 1
A35: 2011-12-15 | B35: 38 | C35: 0 | D35: 12/24/2011 14:23:18 | E35: 265 | F35: =1 -> 1
A36: 2011-12-15T01:00:00 | B36: 36 | C36: 0 | D36: 12/24/2011 17:48:37 | E36: 265 | F36: =1 -> 1
A37: 2011-12-15T02:00:00 | B37: 34 | C37: 0 | D37: 12/25/2011 02:26:09 | E37: 265 | F37: =1 -> 1
A38: 2011-12-15T03:00:00 | B38: 31 | C38: 0 | D38: 12/25/2011 07:19:46 | E38: 265 | F38: =1 -> 1
A39: 2011-12-15T04:00:00 | B39: 32 | C39: 0 | D39: 12/25/2011 08:51:30 | E39: 265 | F39: =1 -> 1
A40: 2011-12-15T05:00:00 | B40: 30 | C40: 0 | D40: 12/26/2011 04:29:00 | E40: 265 | F40: =1 -> 1
A41: 2011-12-15T06:00:00 | B41: 31 | C41: 0 | D41: 12/26/2011 05:36:48 | E41: 265 | F41: =1 -> 1
A42: 2011-12-15T07:00:00 | B42: 28 | C42: 0 | D42: 12/26/2011 11:59:26 | E42: 265 | F42: =1 -> 1
A43: 2011-12-15T08:00:00 | B43: 24 | C43: 0 | D43: 12/26/2011 23:59:46 | E43: 265 | F43: =1 -> 1
A44: 2011-12-15T09:00:00 | B44: 27 | C44: 2 | D44: 12/27/2011 02:59:15 | E44: 265 | F44: =1 -> 1
A45: 2011-12-15T10:00:00 | B45: 26 | C45: 4 | D45: 12/27/2011 05:34:12 | E45: 265 | F45: =1 -> 1
A46: 2011-12-15T11:00:00 | B46: 27 | C46: 0 | D46: 12/27/2011 16:27:45 | E46: 265 | F46: =1 -> 1
A47: 2011-12-15T12:00:00 | B47: 26 | C47: 1 | D47: 12/27/2011 22:26:13 | E47: 265 | F47: =1 -> 1
A48: 2011-12-15T13:00:00 | B48: 29 | C48: 0 | D48: 12/28/2011 17:53:53 | E48: 265 | F48: =1 -> 1
A49: 2011-12-15T14:00:00 | B49: 26 | C49: 0 | D49: 12/28/2011 23:54:22 | E49: 265 | F49: =1 -> 1
A50: 2011-12-15T15:00:00 | B50: 23 | C50: 0 | D50: 12/30/2011 05:46:31 | E50: 265 | F50: =1 -> 1
A51: 2011-12-15T16:00:00 | B51: 25 | C51: 1 | D51: 12/30/2011 09:44:49 | E51: 265 | F51: =1 -> 1
A52: 2011-12-15T17:00:00 | B52: 23 | C52: 0 | D52: 12/30/2011 10:55:34 | E52: 265 | F52: =1 -> 1
A53: 2011-12-15T18:00:00 | B53: 25 | C53: 0 | D53: 12/30/2011 11:14:04 | E53: 265 | F53: =1 -> 1
A54: 2011-12-15T19:00:00 | B54: 25 | C54: 0 | D54: 12/30/2011 11:18:30 | E54: 265 | F54: =1 -> 1
A55: 2011-12-15T20:00:00 | B55: 29 | C55: 0 | D55: 12/30/2011 12:12:42 | E55: 265 | F55: =1 -> 1
A56: 2011-12-15T21:00:00 | B56: 30 | C56: 0 | D56: 12/30/2011 12:50:13 | E56: 265 | F56: =1 -> 1
A57: 2011-12-15T22:00:00 | B57: 28 | C57: 0 | D57: 12/30/2011 13:14:29 | E57: 265 | F57: =1 -> 1
A58: 2011-12-15T23:00:00 | B58: 31 | C58: 0 | D58: 12/30/2011 13:47:41 | E58: 265 | F58: =1 -> 1
A59: 2011-12-16 | B59: 21 | C59: 0 | D59: 12/30/2011 17:50:42 | E59: 265 | F59: =1 -> 1
A60: 2011-12-16T01:00:00 | B60: 23 | C60: 0 | D60: 12/31/2011 03:05:04 | E60: 265 | F60: =1 -> 1
A61: 2011-12-16T02:00:00 | B61: 19 | C61: 0 | D61: 12/31/2011 12:04:55 | E61: 265 | F61: =1 -> 1
A62: 2011-12-16T03:00:00 | B62: 18 | C62: 0 | D62: 01/01/2012 10:36:50 | E62: 265 | F62: =1 -> 1
A63: 2011-12-16T04:00:00 | B63: 16 | C63: 0 | D63: 01/01/2012 17:57:33 | E63: 265 | F63: =1 -> 1
A64: 2011-12-16T05:00:00 | B64: 14 | C64: 0 | D64: 01/01/2012 21:59:53 | E64: 265 | F64: =1 -> 1
A65: 2011-12-16T06:00:00 | B65: 16 | C65: 0 | D65: 01/02/2012 10:14:07 | E65: 265 | F65: =1 -> 1
A66: 2011-12-16T07:00:00 | B66: 14 | C66: 0 | D66: 01/02/2012 12:38:30 | E66: 265 | F66: =1 -> 1
A67: 2011-12-16T08:00:00 | B67: 14 | C67: 0 | D67: 01/02/2012 12:40:37 | E67: 265 | F67: =1 -> 1
A68: 2011-12-16T09:00:00 | B68: 13 | C68: 0 | D68: 01/03/2012 04:53:37 | E68: 265 | F68: =1 -> 1
A69: 2011-12-16T10:00:00 | B69: 11 | C69: 0 | D69: 01/03/2012 07:14:58 | E69: 265 | F69: =1 -> 1
A70: 2011-12-16T11:00:00 | B70: 11 | C70: 1 | D70: 01/03/2012 07:26:09 | E70: 265 | F70: =1 -> 1
A71: 2011-12-16T12:00:00 | B71: 13 | C71: 0 | D71: 01/03/2012 08:30:50 | E71: 265 | F71: =1 -> 1
A72: 2011-12-16T13:00:00 | B72: 14 | C72: 1 | F72: =1 -> 1
A73: 2011-12-16T14:00:00 | B73: 13 | C73: 0 | F73: =1 -> 1
A74: 2011-12-16T15:00:00 | B74: 10 | C74: 0 | F74: =1 -> 1
A75: 2011-12-16T16:00:00 | B75: 12 | C75: 0 | F75: =1 -> 1
A76: 2011-12-16T17:00:00 | B76: 10 | C76: 0 | F76: =1 -> 1
A77: 2011-12-16T18:00:00 | B77: 12 | C77: 1 | F77: =1 -> 1
A78: 2011-12-16T19:00:00 | B78: 9 | C78: 0 | F78: =1 -> 1
A79: 2011-12-16T20:00:00 | B79: 10 | C79: 0 | F79: =1 -> 1
A80: 2011-12-16T21:00:00 | B80: 10 | C80: 1 | F80: =1 -> 1
A81: 2011-12-16T22:00:00 | B81: 11 | C81: 0 | F81: =1 -> 1
A82: 2011-12-16T23:00:00 | B82: 11 | C82: 0 | F82: =1 -> 1
A83: 2011-12-17 | B83: 9 | C83: 0 | F83: =1 -> 1
A84: 2011-12-17T01:00:00 | B84: 9 | C84: 0 | F84: =1 -> 1
A85: 2011-12-17T02:00:00 | B85: 11 | C85: 0 | F85: =1 -> 1
A86: 2011-12-17T03:00:00 | B86: 9 | C86: 0 | F86: =1 -> 1
A87: 2011-12-17T04:00:00 | B87: 10 | C87: 0 | F87: =1 -> 1
A88: 2011-12-17T05:00:00 | B88: 11 | C88: 0 | F88: =1 -> 1
A89: 2011-12-17T06:00:00 | B89: 10 | C89: 0 | F89: =1 -> 1
A90: 2011-12-17T07:00:00 | B90: 12 | C90: 0 | F90: =1 -> 1
A91: 2011-12-17T08:00:00 | B91: 12 | C91: 0 | F91: =1 -> 1
A92: 2011-12-17T09:00:00 | B92: 10 | C92: 0 | F92: =1 -> 1
A93: 2011-12-17T10:00:00 | B93: 10 | C93: 0 | F93: =1 -> 1
A94: 2011-12-17T11:00:00 | B94: 11 | C94: 0 | F94: =1 -> 1
A95: 2011-12-17T12:00:00 | B95: 10 | C95: 0 | F95: =1 -> 1
A96: 2011-12-17T13:00:00 | B96: 13 | C96: 0 | F96: =1 -> 1
A97: 2011-12-17T14:00:00 | B97: 15 | C97: 0 | F97: =1 -> 1
A98: 2011-12-17T15:00:00 | B98: 13 | C98: 0 | F98: =1 -> 1
A99: 2011-12-17T16:00:00 | B99: 14 | C99: 0 | F99: =1 -> 1
A100: 2011-12-17T17:00:00 | B100: 15 | C100: 0 | F100: =1 -> 1
A101: 2011-12-17T18:00:00 | B101: 17 | C101: 0 | F101: =1 -> 1
A102: =A101+0.0416666667 -> 2011-12-17T19:00:00 | B102: 15 | C102: 0 | F102: =1 -> 1
A103: =A102+0.0416666667 -> 2011-12-17T20:00:00 | B103: 16 | C103: 0 | F103: =1 -> 1
A104: 2011-12-17T21:00:00 | B104: 17 | C104: 0 | F104: =1 -> 1
A105: 2011-12-17T22:00:00 | B105: 19 | C105: 0 | F105: =1 -> 1
A106: 2011-12-17T23:00:00 | B106: 21 | C106: 0 | F106: =1 -> 1
A107: 2011-12-18 | B107: 20 | C107: 0 | F107: =1 -> 1
A108: 2011-12-18T01:00:00 | B108: 25 | C108: 0 | F108: =1 -> 1
A109: 2011-12-18T02:00:00 | B109: 25 | C109: 0 | F109: =1 -> 1
A110: 2011-12-18T03:00:00 | B110: 26 | C110: 0 | F110: =1 -> 1
A111: 2011-12-18T04:00:00 | B111: 33 | C111: 0 | F111: =1 -> 1
A112: 2011-12-18T05:00:00 | B112: 27 | C112: 0 | F112: =1 -> 1
A113: 2011-12-18T06:00:00 | B113: 33 | C113: 0 | F113: =1 -> 1
A114: 2011-12-18T07:00:00 | B114: 31 | C114: 0 | F114: =1 -> 1
A115: 2011-12-18T08:00:00 | B115: 29 | C115: 0 | F115: =1 -> 1
A116: 2011-12-18T09:00:00 | B116: 31 | C116: 0 | F116: =1 -> 1
A117: 2011-12-18T10:00:00 | B117: 30 | C117: 0 | F117: =1 -> 1
A118: 2011-12-18T11:00:00 | B118: 32 | C118: 0 | F118: =1 -> 1
A119: 2011-12-18T12:00:00 | B119: 35 | C119: 0 | F119: =1 -> 1
A120: 2011-12-18T13:00:00 | B120: 44 | C120: 0 | F120: =1 -> 1
A121: 2011-12-18T14:00:00 | B121: 46 | C121: 0 | F121: =1 -> 1
A122: 2011-12-18T15:00:00 | B122: 44 | C122: 0 | F122: =1 -> 1
A123: 2011-12-18T16:00:00 | B123: 39 | C123: 0 | F123: =1 -> 1
A124: 2011-12-18T17:00:00 | B124: 42 | C124: 0 | F124: =1 -> 1
A125: 2011-12-18T18:00:00 | B125: 44 | C125: 0 | F125: =1 -> 1
A126: 2011-12-18T19:00:00 | B126: 43 | C126: 0 | F126: =1 -> 1
A127: 2011-12-18T20:00:00 | B127: 43 | C127: 0 | F127: =1 -> 1
A128: 2011-12-18T21:00:00 | B128: 42 | C128: 0 | F128: =1 -> 1
A129: 2011-12-18T22:00:00 | B129: 46 | C129: 0 | F129: =1 -> 1
A130: 2011-12-18T23:00:00 | B130: 39 | C130: 1 | F130: =1 -> 1
A131: 2011-12-19 | B131: 41 | C131: 0 | F131: =1 -> 1
A132: 2011-12-19T01:00:00 | B132: 40 | C132: 0 | F132: =1 -> 1
A133: 2011-12-19T02:00:00 | B133: 39 | C133: 0 | F133: =1 -> 1
A134: 2011-12-19T03:00:00 | B134: 35 | C134: 0 | F134: =1 -> 1
A135: 2011-12-19T04:00:00 | B135: 35 | C135: 0 | F135: =1 -> 1
A136: 2011-12-19T05:00:00 | B136: 39 | C136: 0 | F136: =1 -> 1
A137: 2011-12-19T06:00:00 | B137: 32 | C137: 0 | F137: =1 -> 1
A138: 2011-12-19T07:00:00 | B138: 32 | C138: 0 | F138: =1 -> 1
A139: 2011-12-19T08:00:00 | B139: 32 | C139: 0 | F139: =1 -> 1
A140: 2011-12-19T09:00:00 | B140: 31 | C140: 0 | F140: =1 -> 1
A141: 2011-12-19T10:00:00 | B141: 34 | C141: 0 | F141: =1 -> 1
A142: 2011-12-19T11:00:00 | B142: 34 | C142: 0 | F142: =1 -> 1
A143: 2011-12-19T12:00:00 | B143: 32 | C143: 0 | F143: =1 -> 1
A144: 2011-12-19T13:00:00 | B144: 33 | C144: 0 | F144: =1 -> 1
A145: 2011-12-19T14:00:00 | B145: 31 | C145: 1 | F145: =1 -> 1
A146: 2011-12-19T15:00:00 | B146: 34 | C146: 0 | F146: =1 -> 1
A147: 2011-12-19T16:00:00 | B147: 36 | C147: 0 | F147: =1 -> 1
A148: 2011-12-19T17:00:00 | B148: 32 | C148: 0 | F148: =1 -> 1
A149: 2011-12-19T18:00:00 | B149: 28 | C149: 0 | F149: =1 -> 1
A150: 2011-12-19T19:00:00 | B150: 28 | C150: 0 | F150: =1 -> 1
A151: 2011-12-19T20:00:00 | B151: 32 | C151: 1 | F151: =1 -> 1
A152: 2011-12-19T21:00:00 | B152: 34 | C152: 2 | F152: =1 -> 1
A153: 2011-12-19T22:00:00 | B153: 35 | C153: 0 | F153: =1 -> 1
A154: 2011-12-19T23:00:00 | B154: 36 | C154: 0 | F154: =1 -> 1
A155: 2011-12-20 | B155: 35 | C155: 0 | F155: =1 -> 1
A156: 2011-12-20T01:00:00 | B156: 41 | C156: 0 | F156: =1 -> 1
A157: 2011-12-20T02:00:00 | B157: 45 | C157: 0 | F157: =1 -> 1
A158: 2011-12-20T03:00:00 | B158: 46 | C158: 0 | F158: =1 -> 1
A159: 2011-12-20T04:00:00 | B159: 40 | C159: 0 | F159: =1 -> 1
A160: 2011-12-20T05:00:00 | B160: 35 | C160: 0 | F160: =1 -> 1
A161: 2011-12-20T06:00:00 | B161: 34 | C161: 1 | F161: =1 -> 1
A162: 2011-12-20T07:00:00 | B162: 34 | C162: 0 | F162: =1 -> 1
A163: 2011-12-20T08:00:00 | B163: 36 | C163: 0 | F163: =1 -> 1
A164: 2011-12-20T09:00:00 | B164: 31 | C164: 0 | F164: =1 -> 1
A165: 2011-12-20T10:00:00 | B165: 37 | C165: 0 | F165: =1 -> 1
A166: 2011-12-20T11:00:00 | B166: 29 | C166: 0 | F166: =1 -> 1
A167: =A166+0.0416666667 -> 2011-12-20T12:00:00 | B167: 23 | C167: 1 | F167: =1 -> 1
A168: 2011-12-20T13:00:00 | B168: 19 | C168: 0 | F168: =1 -> 1
A169: 2011-12-20T14:00:00 | B169: 18 | C169: 0 | F169: =1 -> 1
A170: 2011-12-20T15:00:00 | B170: 15 | C170: 0 | F170: =1 -> 1
A171: 2011-12-20T16:00:00 | B171: 17 | C171: 0 | F171: =1 -> 1
A172: 2011-12-20T17:00:00 | B172: 18 | C172: 0 | F172: =1 -> 1
A173: 2011-12-20T18:00:00 | B173: 18 | C173: 0 | F173: =1 -> 1
A174: 2011-12-20T19:00:00 | B174: 16 | C174: 0 | F174: =1 -> 1
A175: 2011-12-20T20:00:00 | B175: 22 | C175: 0 | F175: =1 -> 1
A176: 2011-12-20T21:00:00 | B176: 23 | C176: 0 | F176: =1 -> 1
A177: 2011-12-20T22:00:00 | B177: 26 | C177: 0 | F177: =1 -> 1
A178: 2011-12-20T23:00:00 | B178: 26 | C178: 0 | F178: =1 -> 1
A179: 2011-12-21 | B179: 23 | C179: 0 | F179: =1 -> 1
A180: 2011-12-21T01:00:00 | B180: 27 | C180: 0 | F180: =1 -> 1
A181: 2011-12-21T02:00:00 | B181: 22 | C181: 0 | F181: =1 -> 1
A182: 2011-12-21T03:00:00 | B182: 24 | C182: 0 | F182: =1 -> 1
A183: 2011-12-21T04:00:00 | B183: 21 | C183: 0 | F183: =1 -> 1
A184: 2011-12-21T05:00:00 | B184: 17 | C184: 0 | F184: =1 -> 1
A185: 2011-12-21T06:00:00 | B185: 9 | C185: 0 | F185: =1 -> 1
A186: 2011-12-21T07:00:00 | B186: 10 | C186: 0 | F186: =1 -> 1
A187: 2011-12-21T08:00:00 | B187: 10 | C187: 0 | F187: =1 -> 1
A188: 2011-12-21T09:00:00 | B188: 10 | C188: 1 | F188: =1 -> 1
A189: 2011-12-21T10:00:00 | B189: 11 | C189: 1 | F189: =1 -> 1
A190: 2011-12-21T11:00:00 | B190: 9 | C190: 1 | F190: =1 -> 1
A191: 2011-12-21T12:00:00 | B191: 14 | C191: 0 | F191: =1 -> 1
A192: 2011-12-21T13:00:00 | B192: 8 | C192: 0 | F192: =1 -> 1
A193: 2011-12-21T14:00:00 | B193: 13 | C193: 0 | F193: =1 -> 1
A194: 2011-12-21T15:00:00 | B194: 14 | C194: 0 | F194: =1 -> 1
A195: 2011-12-21T16:00:00 | B195: 18 | C195: 0 | F195: =1 -> 1
A196: 2011-12-21T17:00:00 | B196: 13 | C196: 0 | F196: =1 -> 1
A197: 2011-12-21T18:00:00 | B197: 11 | C197: 0 | F197: =1 -> 1
A198: 2011-12-21T19:00:00 | B198: 14 | C198: 0 | F198: =1 -> 1
A199: 2011-12-21T20:00:00 | B199: 11 | C199: 0 | F199: =1 -> 1
A200: 2011-12-21T21:00:00 | B200: 13 | C200: 0 | F200: =1 -> 1
... 301 more rows
